bitfinex/quotes_SOLUSD_20220228
["timestamp","ask_amount","ask_price","bid_price","bid_amount"]
[1646082118015,3.92385,98.909,98.811,102.2]
[1646082118816,3.92385,98.909,98.81,12.46]
[1646082119217,3.92385,98.909,98.802,18.18496703]
[1646082119715,3.92385,98.909,98.81,12.46]
[1646082119915,3.92385,98.909,98.811,102.2]
[1646082120320,3.92385,98.909,98.824,61.3]
[1646082120523,1.69108993,98.946,98.829,163.5]
[1646082120818,1.69108993,98.946,98.831,102.2]
[1646082121418,3.92385,98.945,98.831,102.2]
[1646082121619,1.94685794,98.944,98.831,102.2]
[1646082121819,3.92385,98.943,98.831,102.2]
[1646082126225,3.92385,98.943,98.83,12.46]
[1646082126427,3.92385,98.943,98.825,4.71117319]
[1646082126627,1.93629549,98.941,98.825,4.71117319]
[1646082126827,16.38385,98.94,98.825,4.71117319]
[1646082127028,1.72641613,98.939,98.825,4.71117319]
[1646082127227,65.22385,98.938,98.809,479.75287073]
[1646082127428,1.72661723,98.937,98.809,479.75287073]
[1646082127627,102.2,98.935,98.809,479.75287073]
[1646082127829,3.92385,98.934,98.809,479.75287073]
[1646082128028,163.5,98.933,98.809,479.75287073]
[1646082128231,61.3,98.922,98.809,479.75287073]
[1646082128429,61.3,98.919,98.809,479.75287073]
[1646082128629,102.2,98.916,98.809,479.75287073]
[1646082128832,1.78915302,98.918,98.809,479.75287073]
[1646082128833,163.5,98.903,98.809,479.75287073]
[1646082129037,163.5,98.889,98.809,317.31937182]
[1646082129234,3.92385,98.887,98.809,317.31937182]
[1646082129632,61.3,98.885,98.798,56.13023573]
[1646082129832,167.42385,98.883,98.743,102.2]
[1646082130057,1.95645576,98.882,98.743,102.2]
[1646082130255,163.5,98.879,98.743,102.2]
[1646082130453,3.92385,98.877,98.743,102.2]
[1646082130654,106.12385,98.877,98.743,102.2]
[1646082130855,61.3,98.872,98.744,55.07442673]
[1646082131054,12.46,98.86,98.744,55.07442673]
[1646082131254,3.92385,98.858,98.744,55.07442673]
[1646082131454,6.19475492,98.858,98.744,55.07442673]
[1646082131953,61.3,98.856,98.744,55.07442673]
[1646082132153,2.74678921,98.857,98.744,55.07442673]
[1646082132154,61.3,98.852,98.744,55.07442673]
[1646082132354,65.22385,98.85,98.744,55.07442673]
[1646082132553,28.64992563,98.839,98.744,55.07442673]
[1646082132755,5.86604388,98.838,98.744,55.07442673]
[1646082136057,5.86604388,98.838,98.745,102.2]
[1646082136255,1.65059228,98.87,98.745,104.94678921]
[1646082136556,3.92385,98.869,98.751,102.2]
[1646082136755,3.92385,98.869,98.759,102.2]
[1646082136956,3.92385,98.869,98.77,12.46]
[1646082137156,3.92385,98.869,98.772,102.2]
[1646082137157,23.64375673,98.868,98.772,102.2]
[1646082137356,1.83013012,98.867,98.771,47.87694971]
[1646082137555,1.83013012,98.867,98.771,50.62373892]
[1646082137756,1.83013012,98.867,98.771,47.87694971]
[1646082138156,1.83013012,98.867,98.771,46.87694971]
[1646082139157,1.83013012,98.867,98.772,2.74678921]
[1646082139557,1.83013012,98.867,98.771,46.87694971]
[1646082139956,1.83013012,98.867,98.772,2.74678921]
[1646082140959,1.83013012,98.867,98.771,46.87694971]
[1646082142959,3.92385,98.866,98.771,46.87694971]
[1646082143160,3.92385,98.866,98.739,2.74678921]
[1646082143560,102.2,98.857,98.739,2.74678921]
[1646082143762,6.05756632,98.856,98.739,2.74678921]
[1646082143960,8.80435553,98.856,98.739,2.74678921]
[1646082144159,2.74678921,98.855,98.74,47.27442876]
[1646082144359,102.2,98.853,98.74,47.27442876]
[1646082144560,12.46,98.85,98.74,47.27442876]
[1646082144761,6.06633931,98.849,98.741,2.74678921]
[1646082145764,2.74678921,98.848,98.74,47.27442876]
[1646082145967,3.92385,98.847,98.74,47.27442876]
[1646082146161,61.3,98.846,98.723,2.74678921]
[1646082146364,1.88174832,98.843,98.723,2.74678921]
[1646082146563,12.46,98.83,98.723,2.74678921]
[1646082146761,5.82773174,98.829,98.723,2.74678921]
[1646082147162,2.17205945,98.827,98.724,52.15790704]
[1646082147564,2.17205945,98.827,98.725,2.74678921]
[1646082148865,3.92385,98.826,98.725,2.74678921]
[1646082149063,3.92385,98.826,98.724,52.15790704]
[1646082150366,3.92385,98.826,98.725,2.74678921]
[1646082153469,2.12771416,98.853,98.725,2.74678921]
[1646082153871,28.31380553,98.852,98.725,2.74678921]
[1646082154072,1.92231215,98.851,98.725,2.74678921]
[1646082155070,1.92231215,98.851,98.727,61.3]
[1646082155270,22.7984,98.854,98.741,163.5]
[1646082155471,1.68934695,98.875,98.752,61.3]
[1646082155670,1.93617412,98.887,98.759,163.5]
[1646082155872,1.93617412,98.887,98.771,102.2]
[1646082156074,2.06581872,98.886,98.773,102.2]
[1646082156272,24.4822,98.921,98.787,102.2]
[1646082156273,1.81672975,98.92,98.787,102.2]
[1646082156474,1.81672975,98.92,98.801,102.2]
[1646082156672,1.81672975,98.92,98.811,102.2]
[1646082156871,1.81672975,98.92,98.774,26.17266412]
[1646082156872,1.7861271,98.897,98.82,12.46]
[1646082157072,28.11072883,98.882,98.821,44.98736691]
[1646082157271,30.03396362,98.882,98.821,44.98736691]
[1646082157471,28.11072883,98.882,98.821,44.98736691]
[1646082157674,24.4822,98.921,98.821,44.98736691]
[1646082157872,1.8511229,98.896,98.821,44.98736691]
[1646082158072,24.4822,98.921,98.821,44.98736691]
[1646082158272,1.9792466,98.92,98.822,104.94678921]
[1646082158672,28.87319197,98.9,98.822,104.94678921]
[1646082158873,28.87319197,98.9,98.823,2.74678921]
[1646082159078,1.9792466,98.92,98.823,2.74678921]
[1646082159975,27.16584233,98.897,98.823,2.74678921]
[1646082160677,1.74576947,98.896,98.823,2.74678921]
[1646082160876,1.74576947,98.896,98.821,44.98736691]
[1646082161679,2.22926185,98.92,98.822,104.94678921]
[1646082162077,2.22926185,98.92,98.823,2.74678921]
[1646082162878,24.4822,98.921,98.823,2.74678921]
[1646082163078,2.19930407,98.944,98.823,2.74678921]
[1646082163378,48.5733,98.986,98.84,102.2]
[1646082163578,1.93751781,98.985,98.851,102.2]
[1646082163978,2.19793142,98.983,98.86,61.3]
[1646082164183,30.59406695,98.984,98.878,61.3]
[1646082164381,30.59406695,98.984,98.879,209.9729619]
[1646082164580,1.92992249,99.01,98.891,102.2]
[1646082164983,1.82966807,99.035,98.891,102.2]
[1646082165182,4.041,99.034,98.892,2.74678921]
[1646082165381,1.82966807,99.035,98.892,2.74678921]
[1646082165581,26.03917551,99.034,98.893,102.2]
[1646082165781,1.92882148,99.033,98.895,102.2]
[1646082165980,1.92882148,99.033,98.896,2.54469233]
[1646082166180,1.92882148,99.033,98.911,102.2]
[1646082166381,1.92882148,99.033,98.913,102.2]
[1646082166583,2.22326551,99.056,98.914,2.34281754]
[1646082166784,4.041,99.089,98.93,5.0]
[1646082166983,1.73305152,99.095,98.941,163.5]
[1646082167183,4.04,99.098,98.94,12.46]
[1646082167184,4.04,99.098,98.951,163.5]
[1646082167383,1.92426048,99.105,98.961,102.2]
[1646082167586,23.42616388,99.104,98.963,102.2]
[1646082167783,2.21819654,99.103,98.964,2.26848832]
[1646082168185,2.21819654,99.103,98.965,127.94500947]
[1646082168385,1.7994719,99.103,98.98,12.46]
[1646082168585,1.7994719,99.103,98.981,52.72667062]
[1646082168784,1.7994719,99.103,98.981,55.47345983]
[1646082169184,1.7994719,99.103,98.982,2.74678921]
[1646082170787,1.33857536,99.172,98.983,130.0]
[1646082170988,21.04731503,99.185,98.983,130.0]
[1646082170989,21.04731503,99.185,99.06,155.77]
[1646082171188,1.42487711,99.184,99.106,19.00397602]
[1646082171397,0.1,99.2,99.11,12.46]
[1646082171788,0.1,99.2,99.111,60.17166851]
[1646082171989,0.1,99.2,99.11,12.46]
[1646082174292,0.1,99.2,99.106,19.00397602]
[1646082175895,3.67503415,99.191,99.106,19.00397602]
[1646082176496,3.67503415,99.191,99.07,12.46]
[1646082176696,4.035,99.19,99.07,12.46]
[1646082177498,3.67503415,99.191,99.07,12.46]
[1646082177898,4.035,99.19,99.07,12.46]
[1646082178299,3.67503415,99.191,99.07,12.46]
[1646082180425,4.035,99.19,99.07,12.46]
[1646082181230,2.74678921,99.189,98.941,2.62876576]
[1646082181431,163.5,99.179,98.94,5.0]
[1646082181630,163.5,99.179,98.925,39.25440609]
[1646082181631,3.3,99.168,98.925,39.25440609]
[1646082181830,163.5,99.166,98.915,320.71895181]
[1646082182029,3.3,99.118,98.916,56.72797226]
[1646082182336,3.3,99.088,98.916,56.72797226]
[1646082182530,3.3,99.068,98.916,56.72797226]
[1646082182729,3.3,99.048,98.915,320.71895181]
[1646082182929,3.92385,99.047,98.79,15.56102936]
[1646082183133,3.92385,99.047,98.791,2.92696686]
[1646082183134,3.3,99.028,98.791,2.92696686]
[1646082183331,163.5,99.019,98.786,10.54109809]
[1646082183531,1.58879863,99.016,98.788,2.76745905]
[1646082183730,47.4982,99.018,98.788,2.76745905]
[1646082183731,12.46,99.01,98.792,2.74678921]
[1646082183940,1.02965858,99.009,98.793,102.2]
[1646082184131,1.02965858,99.009,98.802,61.3]
[1646082184332,1.02965858,99.009,98.811,102.2]
[1646082184533,1.02965858,99.009,98.81,14.94301105]
[1646082184732,62.68795362,99.007,98.81,2.48301105]
[1646082184935,164.88795362,99.007,98.81,2.48301105]
[1646082185132,155.77,99.0,98.811,2.74678921]
[1646082185332,163.5,98.999,98.811,2.74678921]
[1646082185633,61.3,98.969,98.809,46.34537006]
[1646082185833,12.46,98.96,98.81,2.74678921]
[1646082186033,1.7013199,98.959,98.81,2.74678921]
[1646082186431,4.045,98.958,98.81,2.74678921]
[1646082186632,61.3,98.957,98.809,46.34537006]
[1646082186832,61.3,98.955,98.809,46.34537006]
[1646082187033,61.3,98.939,98.809,46.34537006]
[1646082187233,1.48064776,98.928,98.809,46.34537006]
[1646082187435,61.3,98.919,98.809,46.34537006]
[1646082187633,102.2,98.91,98.72,2.68726752]
[1646082187833,163.5,98.899,98.72,2.68726752]
[1646082188034,1.5582143,98.898,98.72,2.68726752]
[1646082188233,163.5,98.899,98.72,2.68726752]
[1646082188234,1.4671517,98.889,98.72,2.68726752]
[1646082188535,163.5,98.879,98.721,58.50160872]
[1646082188734,1.6043783,98.878,98.721,58.50160872]
[1646082188933,61.3,98.867,98.721,58.50160872]
[1646082189136,1.5389661,98.866,98.721,58.50160872]
[1646082189434,15.66849116,98.866,98.721,58.50160872]
[1646082189636,15.81077301,98.865,98.721,58.50160872]
[1646082189835,12.46,98.85,98.721,58.50160872]
[1646082190038,1.50158722,98.849,98.771,0.5062]
[1646082190437,12.46,98.85,98.771,0.5062]
[1646082190637,1.70582964,98.862,98.771,0.5062]
[1646082190837,12.46,98.87,98.772,2.74678921]
[1646082191042,1.74808024,98.869,98.771,0.5062]
[1646082191440,12.46,98.87,98.771,0.5062]
[1646082191638,12.46,98.87,98.772,2.74678921]
[1646082191839,14.23649696,98.87,98.772,2.74678921]
[1646082192041,12.46,98.87,98.771,0.5062]
[1646082192240,12.46,98.87,98.772,2.74678921]
[1646082192445,12.46,98.89,98.772,2.74678921]
[1646082192644,1.39848604,98.889,98.772,2.74678921]
[1646082193143,4.046,98.888,98.772,2.74678921]
[1646082193744,12.46,98.89,98.772,2.74678921]
[1646082194346,1.8240472,98.889,98.772,2.74678921]
[1646082194545,12.46,98.91,98.772,2.74678921]
[1646082194745,1.49064505,98.918,98.772,2.74678921]
[1646082194945,1.49064505,98.918,98.773,102.2]
[1646082195148,1.49064505,98.918,98.774,2.28133936]
[1646082195349,1.49064505,98.918,98.774,5.02812857]
[1646082195546,1.49064505,98.918,98.775,2.74678921]
[1646082196145,1.49064505,98.918,98.781,102.2]
[1646082196347,24.3128,98.919,98.782,2.75102645]
[1646082196549,24.3128,98.919,98.783,150.14586673]
[1646082196747,24.3128,98.919,98.784,2.71946729]
[1646082197247,1.7503543,98.959,98.786,2.81551932]
[1646082197446,1.7503543,98.959,98.801,102.2]
[1646082197655,1.7503543,98.959,98.803,102.2]
[1646082197846,1.7503543,98.959,98.805,102.2]
[1646082198047,1.7503543,98.959,98.811,102.2]
[1646082198251,1.7503543,98.959,98.812,6.34880022]
[1646082198450,1.7503543,98.959,98.812,9.09558943]
[1646082198650,1.7503543,98.959,98.814,2.70131866]
[1646082199050,1.7503543,98.959,98.815,2.74678921]
[1646082199551,1.7503543,98.959,98.816,2.68368748]
[1646082199749,1.7503543,98.959,98.821,102.2]
[1646082199950,12.46,98.96,98.822,2.87453256]
[1646082200152,1.37944515,98.978,98.823,102.2]
[1646082200349,1.37944515,98.978,98.824,3.09382642]
[1646082200552,1.37944515,98.978,98.825,102.2]
[1646082200750,1.37944515,98.978,98.841,102.2]
[1646082200951,1.37944515,98.978,98.83,5.0]
[1646082200952,1.37944515,98.978,98.826,3.07763276]
[1646082201151,1.37944515,98.978,98.826,2.74678921]
[1646082201354,2.74678921,98.977,98.818,2.54446621]
[1646082201751,4.34936827,98.977,98.82,12.46]
[1646082201949,4.34936827,98.977,98.822,2.51544611]
[1646082202150,2.74678921,98.976,98.822,2.51544611]
[1646082202449,2.74678921,98.976,98.823,2.74678921]
[1646082203052,27.51901556,98.976,98.823,2.74678921]
[1646082203251,1.79993504,98.975,98.823,2.74678921]
[1646082203451,12.46,98.96,98.822,2.51544611]
[1646082203651,1.68540752,98.959,98.822,2.51544611]
[1646082204051,4.43219673,98.959,98.823,2.74678921]
[1646082204251,1.68540752,98.959,98.823,2.74678921]
[1646082204452,24.77222635,98.997,98.823,2.74678921]
[1646082204453,1.37438146,98.987,98.823,2.74678921]
[1646082204654,12.46,98.99,98.828,61.3]
[1646082204853,1.84713878,98.989,98.829,2.34279209]
[1646082205073,1.84713878,98.989,98.831,102.2]
[1646082205273,1.84713878,98.989,98.832,52.50604904]
[1646082205475,1.84713878,98.989,98.833,2.45543328]
[1646082205673,5.89013878,98.989,98.834,2.28398948]
[1646082205872,1.84713878,98.989,98.834,2.28398948]
[1646082206073,1.84713878,98.989,98.835,2.74678921]
[1646082207874,1.84713878,98.989,98.849,102.2]
[1646082208076,1.84713878,98.989,98.851,102.2]
[1646082208275,1.84713878,98.989,98.852,2.33502474]
[1646082208476,1.84713878,98.989,98.852,5.08181395]
[1646082208882,1.84713878,98.989,98.853,2.74678921]
[1646082209979,102.2,98.987,98.853,2.74678921]
[1646082210179,61.3,98.972,98.85,52.32430266]
[1646082210378,61.3,98.972,98.78,5.0]
[1646082210379,102.2,98.965,98.82,2.74678921]
[1646082210587,1.61619382,98.958,98.82,2.74678921]
[1646082210780,1.61619382,98.958,98.781,2.4640591]
[1646082210980,102.2,98.954,98.781,2.4640591]
[1646082211180,61.3,98.935,98.757,2.59395309]
[1646082211396,61.3,98.925,98.741,2.43181084]
[1646082211580,163.5,98.909,98.741,2.43181084]
[1646082211782,1.75662916,98.908,98.741,2.43181084]
[1646082211982,61.3,98.899,98.745,3.11737264]
[1646082212183,1.4894876,98.898,98.745,3.11737264]
[1646082212383,62.7894876,98.898,98.81,45.02592589]
[1646082212582,1.58493037,98.897,98.81,45.02592589]
[1646082215187,2.74678921,98.896,98.81,45.02592589]
[1646082215587,12.46,98.9,98.81,45.02592589]
[1646082216886,1.59453464,98.928,98.812,2.32582368]
[1646082217586,1.59453464,98.928,98.811,2.33356691]
[1646082217787,23.9201,98.929,98.811,104.53356691]
[1646082217988,23.9201,98.929,98.812,2.78732214]
[1646082218995,25.31952817,98.929,98.812,2.78732214]
[1646082219193,23.9201,98.929,98.812,2.78732214]
[1646082219388,1.49355669,98.928,98.812,2.78732214]
[1646082219590,1.49355669,98.928,98.813,2.33613462]
[1646082219790,1.49355669,98.928,98.813,104.53613462]
[1646082219991,1.49355669,98.928,98.814,2.54154214]
[1646082220192,12.46,98.93,98.814,2.54154214]
[1646082220996,1.39439158,98.953,98.814,2.54154214]
[1646082221192,12.46,98.96,98.819,102.2]
[1646082221392,1.63591276,98.956,98.82,2.9982864]
[1646082221592,1.63591276,98.956,98.821,102.2]
[1646082221795,1.63591276,98.956,98.822,64.12000939]
[1646082221992,12.46,98.96,98.829,160.47137815]
[1646082222194,12.46,98.96,98.83,105.11552376]
[1646082222394,1.48138804,98.956,98.83,2.91552376]
[1646082223096,12.46,98.96,98.83,2.91552376]
[1646082223294,12.46,98.96,98.83,105.11552376]
[1646082223500,12.46,98.96,98.831,2.51088114]
[1646082224496,2.74678921,98.956,98.831,2.51088114]
[1646082224696,12.46,98.96,98.831,2.51088114]
[1646082226903,1.51718452,98.956,98.831,2.51088114]
[1646082227303,1.51718452,98.956,98.833,2.8121218]
[1646082228304,12.46,98.96,98.834,3.00078398]
[1646082228707,1.7113683,98.956,98.834,3.00078398]
[1646082229205,27.29099556,98.955,98.829,55.85646799]
[1646082229505,1.67409484,98.939,98.829,55.85646799]
[1646082230505,1.83192418,98.939,98.83,3.09555969]
[1646082230709,1.83192418,98.939,98.83,105.29555969]
[1646082230905,1.83192418,98.939,98.829,55.85646799]
[1646082234806,2.74678921,98.938,98.83,102.2]
[1646082235007,1.83192418,98.939,98.831,2.90042584]
[1646082236309,4.57871339,98.939,98.831,2.90042584]
[1646082236708,1.65211794,98.954,98.831,2.90042584]
[1646082236910,12.46,98.96,98.831,2.90042584]
[1646082237309,1.82711021,98.956,98.831,2.90042584]
[1646082237609,11.38273585,98.986,98.841,102.2]
[1646082237811,1.7616095,98.977,98.842,2.48033058]
[1646082238010,1.7616095,98.977,98.843,102.2]
[1646082238408,1.7616095,98.977,98.845,102.2]
[1646082238609,26.30581585,98.977,98.844,46.45209477]
[1646082238831,2.74678921,98.976,98.844,46.45209477]
[1646082239013,4.043,98.975,98.844,46.45209477]
[1646082239211,12.46,98.96,98.844,46.45209477]
[1646082239414,61.3,98.955,98.844,46.45209477]
[1646082239611,12.46,98.94,98.844,46.45209477]
[1646082239813,1.80718878,98.939,98.844,46.45209477]
[1646082240313,2.74678921,98.954,98.844,46.45209477]
[1646082240512,12.46,98.95,98.844,46.45209477]
[1646082240712,1.3562126,98.948,98.844,46.45209477]
[1646082241011,102.2,98.936,98.773,2.90302825]
[1646082241212,61.3,98.921,98.773,2.90302825]
[1646082241412,61.3,98.918,98.773,2.90302825]
[1646082241614,12.46,98.91,98.773,2.90302825]
[1646082241814,1.81019026,98.909,98.773,2.90302825]
[1646082242016,61.3,98.901,98.774,42.88215229]
[1646082242213,12.46,98.89,98.774,42.88215229]
[1646082242619,61.3,98.883,98.774,42.88215229]
[1646082242813,1.84293106,98.889,98.774,42.88215229]
[1646082242814,163.5,98.878,98.774,42.88215229]
[1646082243013,12.46,98.87,98.774,42.88215229]
[1646082243215,12.46,98.87,98.771,0.5062]
[1646082243216,61.3,98.865,98.771,0.5062]
[1646082243515,12.46,98.85,98.771,0.5062]
[1646082243715,1.72943216,98.849,98.771,0.5062]
[1646082244117,4.47622137,98.849,98.771,0.5062]
[1646082244716,164.92934492,98.848,98.771,0.5062]
[1646082244918,1.37643173,98.847,98.771,0.5062]
[1646082247237,2.74678921,98.846,98.771,0.5062]
[1646082247437,190.79099556,98.846,98.771,0.5062]
[1646082247637,163.5,98.844,98.771,0.5062]
[1646082247837,163.5,98.829,98.771,0.5062]
[1646082248039,1.37136298,98.828,98.771,0.5062]
[1646082248436,2.74678921,98.827,98.707,46.31637068]
[1646082248638,166.24678921,98.827,98.707,46.31637068]
[1646082248839,15.21179399,98.826,98.707,46.31637068]
[1646082249038,61.3,98.814,98.707,46.31637068]
[1646082249343,12.46,98.8,98.707,46.31637068]
[1646082249538,12.46,98.79,98.707,46.31637068]
[1646082249741,1.69393325,98.789,98.707,46.31637068]
[1646082250339,1.69393325,98.789,98.707,45.81637068]
[1646082253139,12.46,98.79,98.708,102.2]
[1646082253340,1.3922486,98.811,98.709,2.50246025]
[1646082253540,12.46,98.81,98.709,2.50246025]
[1646082254746,12.46,98.81,98.708,102.2]
[1646082254945,1.75838637,98.809,98.707,45.81637068]
[1646082255341,12.46,98.81,98.707,45.81637068]
[1646082255541,12.46,98.81,98.709,102.2]
[1646082255746,12.46,98.81,98.71,105.25368831]
[1646082255941,12.46,98.81,98.711,2.90823634]
[1646082256342,72.3011,98.821,98.711,2.90823634]
[1646082258044,12.46,98.85,98.712,2.74678921]
[1646082258243,1.83811643,98.858,98.712,2.74678921]
[1646082258244,1.43209301,98.867,98.72,114.66]
[1646082258445,1.43209301,98.867,98.721,2.86318591]
[1646082258645,1.43209301,98.867,98.722,152.86617142]
[1646082258944,1.43209301,98.867,98.723,2.26274396]
[1646082259143,1.43209301,98.867,98.723,5.00953317]
[1646082259343,1.43209301,98.867,98.723,2.26274396]
[1646082259544,1.43209301,98.867,98.724,2.74678921]
[1646082261348,1.43209301,98.867,98.724,104.94678921]
[1646082261547,1.43209301,98.867,98.73,102.2]
[1646082261746,1.43209301,98.867,98.731,63.96758242]
[1646082261947,74.0865,98.868,98.741,102.2]
[1646082262146,1.50968321,98.881,98.74,12.46]
[1646082262147,1.50968321,98.881,98.743,102.2]
[1646082262347,1.50968321,98.881,98.744,2.96702655]
[1646082262551,1.50968321,98.881,98.745,102.2]
[1646082262849,71.1727,98.882,98.762,49.34978476]
[1646082263048,23.6535,98.882,98.766,61.3]
[1646082263248,1.7498543,98.925,98.781,163.5]
[1646082263448,1.7498543,98.925,98.783,163.5]
[1646082263653,1.7498543,98.925,98.791,102.2]
[1646082263848,1.6821931,98.947,98.8,56.8483794]
[1646082264049,1.6821931,98.947,98.803,102.2]
[1646082264249,1.6821931,98.947,98.809,163.5]
[1646082264452,72.9895,98.948,98.821,102.2]
[1646082264649,72.9895,98.948,98.821,157.36384504]
[1646082264848,72.9895,98.948,98.822,2.78098411]
[1646082265051,72.9895,98.948,98.823,102.2]
[1646082265249,24.977,98.948,98.828,61.3]
[1646082265452,24.977,98.948,98.839,102.2]
[1646082265651,1.39727305,98.989,98.841,102.2]
[1646082265851,1.60227875,98.999,98.851,102.2]
[1646082266050,1.60227875,98.999,98.852,2.26638166]
[1646082266451,1.60227875,98.999,98.855,102.2]
[1646082266652,1.60227875,98.999,98.853,5.57699581]
[1646082266653,69.9184,99.017,98.861,102.2]
[1646082266850,69.9184,99.017,98.872,2.89060755]
[1646082267051,1.47796024,99.034,98.878,61.3]
[1646082267252,21.03432098,99.08,98.862,2.74678921]
[1646082267253,1.84327053,99.067,98.9,5.0]
[1646082267452,72.1483,99.091,98.9,5.0]
[1646082267453,1.44989507,99.083,98.911,102.2]
[1646082267653,1.44989507,99.083,98.912,2.65364246]
[1646082267852,1.44989507,99.083,98.913,102.2]
[1646082268052,1.44989507,99.083,98.914,2.53152359]
[1646082268253,4.04,99.082,98.915,102.2]
[1646082268453,1.78411784,99.079,98.93,12.46]
[1646082268651,4.04,99.078,98.931,151.64355434]
[1646082268854,4.04,99.078,98.932,2.32498855]
[1646082269252,1.78411784,99.079,98.933,2.74678921]
[1646082269851,1.78411784,99.079,98.934,102.2]
[1646082270054,1.78411784,99.079,98.935,2.35567219]
[1646082270259,1.78411784,99.079,98.951,102.2]
[1646082270653,1.78411784,99.079,98.953,102.2]
[1646082270855,1.78411784,99.079,98.954,2.480877]
[1646082271054,1.51966744,99.09,98.954,2.74678921]
[1646082271455,1.51966744,99.09,98.952,55.88449309]
[1646082271456,2.74678921,99.089,98.955,2.74678921]
[1646082271654,141.79019712,99.089,98.952,55.88449309]
[1646082271857,63.02122748,99.088,98.952,55.88449309]
[1646082272054,5.41435509,99.087,98.952,55.88449309]
[1646082272256,40.80565941,99.087,98.952,55.88449309]
[1646082272455,2.74678921,99.086,98.952,55.88449309]
[1646082272654,4.038,99.085,98.952,55.88449309]
[1646082272859,4.038,99.085,79.1,50.0]
[1646082272860,102.2,99.069,98.881,2.81028062]
[1646082273056,125.6445,99.068,98.881,2.81028062]
[1646082273266,1.72302374,99.067,98.855,15.3766]
[1646082273456,1.72302374,99.067,98.856,2.72583009]
[1646082273457,61.3,99.057,98.856,2.72583009]
[1646082273656,61.3,99.057,98.85,22.6576]
[1646082273657,61.3,99.049,98.851,2.4236444]
[1646082273859,12.46,99.04,98.852,47.79856905]
[1646082274058,12.46,99.03,98.853,2.66121995]
[1646082274356,12.46,99.02,98.854,2.83676791]
[1646082274557,12.46,99.01,98.854,5.58355712]
[1646082274757,96.1966,99.019,98.854,5.58355712]
[1646082274956,1.85969576,99.018,98.855,24.86956427]
[1646082275156,1.85969576,99.018,98.861,102.2]
[1646082275359,1.85969576,99.018,98.86,12.46]
[1646082275360,1.85969576,99.018,98.862,2.91998338]
[1646082275558,2.74678921,99.017,98.86,12.46]
[1646082275764,2.74678921,99.017,98.861,2.43899535]
[1646082276057,2.74678921,99.017,98.861,2.7973775]
[1646082276257,2.74678921,99.017,98.86,12.46]
[1646082276457,61.3,99.012,98.842,3.05139804]
[1646082276657,61.3,99.012,98.84,12.46]
[1646082276658,61.3,98.994,98.828,2.74678921]
[1646082276857,12.46,98.98,98.829,2.94876106]
[1646082277059,1.83164047,98.979,98.853,102.2]
[1646082277257,12.46,98.97,98.853,104.99229229]
[1646082277458,1.59728675,98.969,98.836,16.23446715]
[1646082277660,12.46,98.96,98.825,2.74678921]
[1646082277861,1.43090414,98.959,98.826,2.27417104]
[1646082278059,1.43090414,98.959,98.831,102.2]
[1646082278260,1.43090414,98.959,98.827,2.43182879]
[1646082278861,1.43090414,98.959,98.853,2.74678921]
[1646082279062,12.46,98.96,98.853,2.74678921]
[1646082279063,1.57885604,98.991,98.853,5.65734766]
[1646082279263,73.6156,99.019,98.853,5.65734766]
[1646082279264,1.5612878,98.989,98.855,104.45604448]
[1646082279462,1.5612878,98.989,98.856,2.36473946]
[1646082279661,12.46,98.99,98.859,163.5]
[1646082279862,12.46,98.99,98.86,15.4560351]
[1646082280086,1.51391145,98.989,98.857,29.27798258]
[1646082280262,1.51391145,98.989,98.852,47.79856905]
[1646082280263,1.51391145,98.989,98.861,2.74678921]
[1646082281664,1.51391145,98.989,98.862,102.2]
[1646082281964,1.51391145,98.989,98.863,5.03355719]
[1646082282364,12.46,98.99,98.865,102.2]
[1646082282564,12.46,98.99,98.866,2.84586756]
[1646082282765,12.46,98.99,98.868,102.2]
[1646082282967,12.46,98.99,98.869,3.04926]
[1646082283366,12.46,98.99,98.87,102.2]
[1646082283564,12.46,98.99,98.871,2.2873119]
[1646082283765,1.53466526,98.989,98.871,2.2873119]
[1646082284066,1.53466526,98.989,98.871,2.74678921]
[1646082284265,4.28145447,98.989,98.867,52.00084913]
[1646082285469,4.15676529,98.988,98.867,52.00084913]
[1646082285869,2.74678921,98.987,98.867,52.00084913]